Cogmind - Beta 14 @@@ ROGUE MODE // 2024.12.26 @ 20:45:04 Player: Derk Result: Core destroyed Performance ------------- Evolutions (5) 2500 Regions Visited (18) 3600 Robots Destroyed (152) 760 Value Destroyed (6837) 6837 Prototype IDs (50) 1000 Alien Tech Used (0) 0 Bonus (5533) 5533 TOTAL SCORE: 20230 Bonus ------- High Alert Combat Kills 502 Follower Combat Kills 2548 Entered Garrisons 600 Used RIF Installer 1500 Aligned with FarCom 300 Built Enhanced Grunts 300 A7 Reached Mainframe 300 Friendly Fire -517 Cogmind --------- Core Integrity 0/1000 Matter 193/300 Energy 28/170 System Corruption 5% Temperature Critical (540) Movement Treading (160) Location -5/Hub_04(d) Parts ------- > --- POWER (1) -------- Light Antimatter Reactor > --- PROPULSION (3) --- Medium Treads Centrium Heavy Treads > --- UTILITY (11) ----- Lightpack 2.0 Centrium Medium Armor Plating Insulated Plating Improved Hacking Suite Improved Hacking Suite Advanced System Shield Relay Coupler [Sentry] (23) Relay Coupler [Heavy] (6) > --- WEAPON (2) ------- Advanced KE Penetrator Shock Maul > --- INVENTORY (40) --- Micro Fission Core Micro Fission Core Micro Fission Core Micro Fission Core Medium Treads Centrium Heavy Treads Advanced Heavy Siege Treads Improved VTOL Module Improved VTOL Module Advanced Energy Well (500) High-capacity Matter Pod (200) Improved Signal Interpreter Improved Medium Armor Plating Centrium Medium Armor Plating Experimental Thermal Shield Hacking Suite Hacking Suite Advanced Hacking Suite Authchip [R/Combat] Authchip [R/Combat] Authchip [R/Combat] Relay Coupler [NC] (37) Relay Coupler [Swarmer] (49) Component Analysis Suite Enhanced Quantum Rifle Neutron Cannon Matter Neutralizer Matter Neutralizer Improved Remote Datajack Improved Remote Datajack CPS Tube (1) Shock Maul Katana Peak State ------------ > --- POWER ------------ Quantum Reactor > --- PROPULSION ------- Medium Treads Centrium Heavy Treads > --- UTILITY ---------- Improved Cooling System Lightpack 2.0 Improved Medium Armor Plating Centrium Medium Armor Plating Improved Hacking Suite Improved Hacking Suite Advanced System Shield Relay Coupler [Sentry] Relay Coupler [Heavy] > --- WEAPON ----------- Advanced Variable Charge Gun Shock Maul > --- INVENTORY -------- Light Fission Core Micro Fission Core Micro Fission Core Light Antimatter Reactor Medium Treads Centrium Heavy Treads Advanced Heavy Siege Treads Improved VTOL Module Improved VTOL Module Advanced Energy Well High-capacity Matter Pod Improved Signal Interpreter Improved Medium Armor Plating Centrium Medium Armor Plating Insulated Plating Experimental Thermal Shield Hacking Suite Hacking Suite Advanced Hacking Suite Authchip [R/Combat] Authchip [R/Combat] Authchip [R/Combat] Relay Coupler [NC] Relay Coupler [Swarmer] Component Analysis Suite Enhanced Quantum Rifle Neutron Cannon Matter Neutralizer Matter Neutralizer Advanced KE Penetrator Improved Remote Datajack Improved Remote Datajack Improved Remote Datajack CPS Tube Shock Maul Katana [Rating: 138] Favorites ----------- Power Quantum Reactor Engine Light Angular Momentum Engine Power Core Light Nuclear Core Reactor Quantum Reactor Propulsion Light Treads Treads Light Treads Wheel Wheel Flight Unit Nuclear Pulse Array Utility Large Storage Unit Device Improved Heat Sink Storage Large Storage Unit Processor Advanced Visual Processing Unit Hackware Improved Hacking Suite Protection Improved Light Armor Plating Weapon Enhanced Autogun Energy Gun Enhanced Quantum Rifle Energy Cannon Ion Cannon Ballistic Gun Enhanced Autogun Ballistic Cannon Heavy Assault Cannon Launcher Grenade Launcher Special Weapon Remote Datajack Impact Weapon Heavy Hammer Slashing Weapon Katana Special Melee Weapon Datajack Build | -11 -10 -10 -10 -9 -8 -8 -8 -8 -7 -7 -7 -7 -5 -5 -5 -5 -5 -5 ------- Run | Yrd Mat Min Exi Min Mat Gar Mat Gar Fac Sto Rec Scr Fac Gar Ext Cet Arc Hub Slots Evolved 10 | . . . . . 4 . . . 2 . . . 4 . . . . . Power . | . . . . . . . . . . . . . . . . . . . Propulsion 1 | . . . . . . . . . 1 . . . . . . . . . Utility 9 | . . . . . 4 . . . 1 . . . 4 . . . . . Weapon . | . . . . . . . . . . . . . . . . . . . Parts Attached 275 | 9 23 2 1 1 34 6 18 20 21 16 . . 11 51 28 21 2 11 Power 23 | 1 3 . . . 5 . 1 4 . 1 . . . 5 . 2 . 1 Engine 8 | 1 3 . . . 3 . . 1 . . . . . . . . . . Core 11 | . . . . . 2 . 1 3 . 1 . . . 4 . . . . Reactor 4 | . . . . . . . . . . . . . . 1 . 2 . 1 Propulsion 39 | 2 6 . . . 4 . 4 2 3 . . . 1 13 2 1 1 . Treads 30 | . 6 . . . 4 . 4 2 . . . . . 10 2 1 1 . Leg . | . . . . . . . . . . . . . . . . . . . Wheel 2 | 2 . . . . . . . . . . . . . . . . . . Hover . | . . . . . . . . . . . . . . . . . . . Flight 7 | . . . . . . . . . 3 . . . 1 3 . . . . Utility 105 | 3 2 . . . 15 1 6 8 11 7 . . 6 22 14 6 . 4 Device 41 | 2 1 . . . 6 . 1 2 7 2 . . 1 12 5 2 . . Storage 8 | 1 1 . . . 2 . 1 1 . . . . . . 1 1 . . Processor 10 | . . . . . 1 . 1 1 2 2 . . 1 1 . 1 . . Hackware 24 | . . . . . . . 1 3 1 3 . . 4 4 6 . . 2 Protection 22 | . . . . . 6 1 2 1 1 . . . . 5 2 2 . 2 Artifact . | . . . . . . . . . . . . . . . . . . . Weapon 108 | 3 12 2 1 1 10 5 7 6 7 8 . . 4 11 12 12 1 6 Energy Gun 22 | 1 5 . . 1 . . . . . 1 . . 1 3 5 4 . 1 Energy Cannon 11 | . . . . . . 1 1 2 2 1 . . 1 1 . 1 . 1 Ballistic Gun 23 | 2 3 . . . 6 2 3 1 1 1 . . . . . 3 . 1 Ballistic Cannon 2 | . . . . . . . 1 1 . . . . . . . . . . Launcher 7 | . 1 1 1 . . 1 . 2 . . . . . 1 . . . . Special Weapon 22 | . . . . . . . . . 2 4 . . 1 3 6 4 1 1 Impact Weapon 12 | . . . . . 4 1 2 . 1 . . . . 1 1 . . 2 Slashing Weapon 5 | . . . . . . . . . 1 1 . . 1 2 . . . . Piercing Weapon . | . . . . . . . . . . . . . . . . . . . Special Melee Weapon 4 | . 3 1 . . . . . . . . . . . . . . . . Unidentified Prototypes 9 | . . . . . 2 . . . . . . . . . . 7 . . Parts Lost 54 | . 5 . . . 11 1 4 10 . . . . . 14 4 2 1 2 Power 7 | . 1 . . . 1 . . 2 . . . . . 3 . . . . Propulsion 9 | . 1 . . . 3 . . 1 . . . . . 2 1 . 1 . Utility 30 | . 1 . . . 6 1 3 5 . . . . . 8 3 1 . 2 Weapon 8 | . 2 . . . 1 . 1 2 . . . . . 1 . 1 . . Highest Loss Streak 8 | . 2 . . . 3 1 2 3 . . . . . 8 2 2 1 1 To Critical Strikes 1 | . . . . . . . . 1 . . . . . . . . . . Average Slot Usage (%) 86 | . 99 100 76 100 91 99 98 72 74 67 76 76 81 81 81 80 81 79 Engine 3 | . 13 14 14 14 8 . . 2 . . . . . . . . . . Core 3 | . . . . . . 9 9 6 7 5 7 7 5 3 . . . . Reactor 1 | . . . . . . . . . . . . . . 1 5 4 5 5 Treads 14 | . 22 28 28 28 17 18 18 17 . . . . . 13 11 11 10 11 Flight 1 | . . . . . . . . . 14 15 15 15 11 . . . . . Device 11 | . 14 14 14 14 22 9 9 10 10 . . . 4 15 8 5 5 3 Storage 8 | . 14 14 14 14 9 9 9 9 7 7 7 7 5 5 8 9 5 5 Processor 4 | . . . . . 7 9 8 4 3 2 7 7 6 5 . 1 5 . Hackware 11 | . . . . . . . 5 2 15 21 23 23 33 19 27 29 29 29 Protection 7 | . . . . . 7 26 19 6 . . . . . 1 4 4 5 11 Energy Gun 2 | . 6 14 2 14 . . . . . 2 . . . 4 8 8 . 2 Energy Cannon 1 | . . . . . . 6 6 3 . . . . . . . . 5 . Ballistic Gun 5 | . 19 . . . 11 7 6 2 . . . . . . . . . . Special Weapon 1 | . . . . . . . . . 6 4 7 7 4 1 1 . 5 2 Impact Weapon 1 | . . . . . 5 2 3 . 1 . . . . . . . . 4 Slashing Weapon 1 | . . . . . . . . . 5 4 7 7 4 4 . . . . Peak Build Rating 138 | 9 10 10 13 15 41 36 40 66 84 85 85 85 105 134 134 136 130 138 Average Rating 63 | 5 8 10 11 14 34 34 38 40 78 79 85 84 101 113 126 131 125 134 On Entrance 61 | . 7 10 10 13 15 36 36 36 66 76 85 85 85 104 126 125 130 125 Naked Turns . | . . . . . . . . . . . . . . . . . . . Heaviest Build 61 | 13 31 32 32 32 53 45 43 61 24 24 16 16 23 46 50 50 49 54 Greatest Support 110 | 26 40 40 40 40 42 42 42 47 47 18 18 18 18 105 110 110 110 108 Greatest Overweight (x) 1 | . . . . . 1 1 1 1 1 1 . . 1 1 . . . . Average Overweight (x) . | . . . . . . . . . . . . . . . . . . . Largest Inventory Capacity 40 | 8 15 15 15 15 15 15 15 40 40 40 40 40 40 40 40 40 40 40 Average Capacity 25 | 6 11 15 15 15 15 15 15 17 40 40 40 40 40 40 40 40 40 40 Most Carried 40 | 7 9 9 15 15 15 15 15 22 40 40 40 40 40 40 40 40 40 40 Average Carried 22 | 5 6 9 13 14 14 15 14 14 30 38 39 39 37 31 38 38 39 38 Final Capacity 40 | 8 15 15 15 15 15 15 15 40 40 40 40 40 40 40 40 40 40 40 Final Carried 40 | 7 9 9 14 15 15 15 15 22 40 39 40 40 37 40 39 39 40 35 Class Distribution -------------------- 45% | Mutant 18% | Hauler-Mutant 16% | Bothacker-Mutant 12% | Scavenger-Mutant 3% | Hacker-Mutant Dominant Class ---------------- Mutant | -10/Materials Mutant | -10/Mines Mutant | -10/Exiles Mutant | -9/Mines Scavenger-Mutant | -8/Materials Mutant | -8/Garrison Mutant | -8/Materials Mutant | -8/Garrison Hauler-Mutant | -7/Factory Hauler-Mutant | -7/Storage Hauler-Mutant | -7/Recycling Hauler-Mutant | -7/Scraptown Hacker-Mutant | -5/Factory Hauler-Mutant | -5/Garrison Bothacker-Mutant | -5/Extension Bothacker-Mutant | -5/Cetus Scavenger-Mutant | -5/Archives Hauler-Mutant | -5/Hub_04(d) Resources | -11 -10 -10 -10 -9 -8 -8 -8 -8 -7 -7 -7 -7 -5 -5 -5 -5 -5 -5 ----------- Run | Yrd Mat Min Exi Min Mat Gar Mat Gar Fac Sto Rec Scr Fac Gar Ext Cet Arc Hub Matter Collected 5940 | 324 535 . 258 71 1153 185 476 690 248 441 . . 109 571 461 244 57 117 Remotely . | . . . . . . . . . . . . . . . . . . . Salvage Created 6687 | 89 686 . . 69 1765 396 918 797 63 216 . . 109 815 568 70 . 126 Parts 340 | 9 46 . . 3 76 30 55 35 4 11 . . 7 31 29 1 . 3 Haulers Intercepted 5 | . 1 . . . 3 . 1 . . . . . . . . . . . Recyclers Shooed 2 | . . . . . 1 . . . . . . . . . 1 . . . Parts Field Recycled . | . . . . . . . . . . . . . . . . . . . Retrieved Matter . | . . . . . . . . . . . . . . . . . . . Parts Self-Destructed . | . . . . . . . . . . . . . . . . . . . Prevented . | . . . . . . . . . . . . . . . . . . . Kills | -11 -10 -10 -10 -9 -8 -8 -8 -8 -7 -7 -7 -7 -5 -5 -5 -5 -5 -5 ------- Run | Yrd Mat Min Exi Min Mat Gar Mat Gar Fac Sto Rec Scr Fac Gar Ext Cet Arc Hub Combat Hostiles Destroyed 117 | . 14 . . 3 24 14 15 21 1 3 . . 2 11 6 1 . 2 Melee 4 | . . . . . 1 . . . . . . . . 2 . . . 1 Guns 63 | . 14 . . 1 19 6 4 3 . 2 . . . 7 6 1 . . Cannons 28 | . . . . . . 3 11 10 1 . . . 2 1 . . . . AOE 18 | . . . . 2 3 5 . 8 . . . . . . . . . . Classes Destroyed 18 | 2 7 . . 1 4 . 1 1 . . . . . 1 1 . . . Worker 3 | . 2 . . . 1 . . . . . . . . . . . . . Builder 3 | . . . . . 2 . . . . . . . . . 1 . . . Tunneler 2 | 2 . . . . . . . . . . . . . . . . . . Hauler 5 | . 1 . . . 3 . 1 . . . . . . . . . . . Recycler 7 | 1 . . . . 3 . 1 . . 1 . . . . 1 . . . Mechanic 3 | . 1 . . . 1 . 1 . . . . . . . . . . . Operator 6 | . 3 . . . . . 1 . . . . . . . 1 . . 1 Watcher 5 | . 1 . . . 3 . 1 . . . . . . . . . . . Swarmer 24 | . 3 . . . . 10 2 7 . . . . . 2 . . . . Saboteur 2 | . . . . . . . . . . . . . . 2 . . . . Grunt 56 | . 11 . . 2 17 . 8 8 . 2 . . . 3 2 1 . 2 Brawler 4 | . . . . 1 1 . . 2 . . . . . . . . . . Duelist 1 | . . . . . 1 . . . . . . . . . . . . . Sentry 16 | . . . . . 3 4 4 1 1 1 . . . 2 . . . . Specialist 2 | . . . . . 2 . . . . . . . . . . . . . Hunter 3 | . . . . . . . 1 . . . . . . 1 1 . . . Programmer 7 | . . . . . . . . 3 . . . . 2 1 1 . . . Behemoth 2 | . . . . . . . . . . . . . . . 2 . . . Guerrilla 1 | . . . . . . . . 1 . . . . . . . . . . Best Kill Streak 9 | 2 3 . . 3 7 4 4 9 1 2 . . 2 4 3 1 . 2 Combat Bots Only 9 | . 3 . . 3 6 4 4 9 1 1 . . 2 4 1 1 . 2 Max Kills in Single Turn 4 | 1 1 . . 2 4 3 1 2 1 1 . . 1 1 1 1 . 1 Gunslinging . | . . . . . . . . . . . . . . . . . . . Exploded 3 | . . . . 2 2 3 . 1 . . . . . . . . . . Melee 1 | . . . . . 1 . . . . . . . . 1 . . . 1 Uniques/NPCs Destroyed . | . . . . . . . . . . . . . . . . . . . Combat | -11 -10 -10 -10 -9 -8 -8 -8 -8 -7 -7 -7 -7 -5 -5 -5 -5 -5 -5 -------- Run | Yrd Mat Min Exi Min Mat Gar Mat Gar Fac Sto Rec Scr Fac Gar Ext Cet Arc Hub Hostile Shots Fired 941 | . 114 . . 7 146 38 118 161 18 21 . . 6 157 89 21 5 40 Missed 276 | . 42 . . 3 43 12 28 45 9 11 . . 2 37 26 7 1 10 Damage Taken 11873 | . 765 . . 142 1756 311 1333 1867 60 130 . . 65 2172 1709 331 104 1128 Core 1645 | . 104 . . 4 128 31 146 191 17 6 . . 23 343 134 9 . 509 Absorbed by Shields 174 | . . . . . . 4 . . . . . . . . 55 115 . . Reduced by Siege Mode 64 | . . . . . . . . . . . . . . . 57 7 . . Redirected to Shielding 26 | . . . . . . . 5 21 . . . . . . . . . . Ignored by Resistances 173 | . . . . . . . . . . . . . . 128 . . . 45 Regen/Repaired (Parts) 767 | . 104 . . . 151 . . . . 489 . . 23 . . . . . Core Remaining (%) 65 | 100 . . . 56 . . . 9 . . . 96 . . . . . . Volleys Fired 644 | 6 88 . . 7 109 32 79 98 8 29 . . 11 59 75 16 9 18 Largest 2 | 2 2 . . 1 2 2 2 1 1 2 . . 1 1 2 2 1 1 Hottest 240 | 40 85 . . 65 50 85 85 98 98 159 . . 98 98 130 125 90 240 Shots Fired 922 | 12 177 . . 8 186 42 119 100 8 31 . . 11 59 119 23 9 18 Gun 675 | 12 177 . . 5 186 27 65 30 . 8 . . 3 43 93 17 . 9 Cannon 129 | . . . . . . 8 54 47 3 2 . . 5 3 . 2 3 2 Launcher 34 | . . . . 3 . 7 . 23 . . . . . 1 . . . . Special 84 | . . . . . . . . . 5 21 . . 3 12 26 4 6 7 Kinetic 517 | 12 146 . . . 186 27 74 60 . 5 . . . . . 6 . 1 Thermal 287 | . 31 . . 5 . 8 45 17 3 5 . . 8 46 93 13 3 10 Explosive 3 | . . . . 3 . . . . . . . . . . . . . . Electromagnetic 31 | . . . . . . 7 . 23 . . . . . 1 . . . . Robot Hit Streak 22 | 7 11 . . 1 17 13 13 7 7 8 . . 6 9 22 13 7 10 Robot Miss Streak 5 | 1 5 . . 1 4 1 3 3 1 2 . . 1 3 3 2 1 3 Penetration Max 1 | . . . . . . . . . . . . . . . . 1 . . Secondary Targets 3 | . 2 . . . 1 . . . . . . . . . . . . . Max Gunslinging Chain 1 | . 1 . . . 1 . . . . . . . . . . . . . Shots Hit Robots 634 | 8 109 . . 3 138 15 87 42 7 23 . . 7 62 93 17 8 15 Core Hits 242 | 4 39 . . 6 57 15 34 29 2 5 . . 2 21 22 4 1 1 Critical Kills 1 | . . . . . . . . . . 1 . . . . . . . . Critical Parts Destroyed 13 | . 2 . . . 6 . . . . . . . . 1 . 2 . 2 Critical Strikes 25 | . 3 . . . 6 . . 1 . 1 . . . 7 2 3 . 2 Burn 6 | . 1 . . . . . . . . . . . . 2 2 1 . . Meltdown 1 | . . . . . . . . . . 1 . . . . . . . . Destroy 8 | . 2 . . . 3 . . . . . . . . . . 2 . 1 Blast 1 | . . . . . . . . 1 . . . . . . . . . . Smash 5 | . . . . . 3 . . . . . . . . 1 . . . 1 Sever 4 | . . . . . . . . . . . . . . 4 . . . . Melee Attacks 193 | . 9 . . . 31 5 22 . 33 5 4 . 16 49 3 . . 16 Impact 79 | . . . . . 31 5 22 . . . . . . 2 3 . . 16 Slashing 105 | . . . . . . . . . 33 5 4 . 16 47 . . . . Piercing . | . . . . . . . . . . . . . . . . . . . Sneak Attacks 10 | . 5 . . . 3 . 1 . . . . . . . . . . 1 Combat Hostiles 1 | . . . . . 1 . . . . . . . . . . . . . Follow-up Attacks . | . . . . . . . . . . . . . . . . . . . Damage Inflicted 16184 | 103 1423 . . 217 3172 591 1985 2542 101 195 . . 207 2096 2429 498 113 512 Guns 9338 | 103 1423 . . 44 2118 201 759 444 . 129 . . . 956 2429 498 . 234 Cannons 3018 | . . . . . . 91 1176 1125 101 66 . . 207 96 . . 113 43 Explosions 1970 | . . . . 173 394 299 . 973 . . . . . 131 . . . . Melee 1857 | . . . . . 660 . 50 . . . . . . 913 . . . 234 Ramming 1 | . . . . . . . . . . . . . . . . . . 1 Kinetic 6179 | 103 1154 . . . 2118 201 1151 1147 . 69 . . . . . 200 . 36 Thermal 6336 | . 269 . . 44 . 129 784 543 101 126 . . 207 1052 2429 298 113 241 Explosive 567 | . . . . 173 394 . . . . . . . . . . . . . Electromagnetic 1244 | . . . . . . 261 . 852 . . . . . 131 . . . . Impact 982 | . . . . . 660 . 50 . . . . . . 38 . . . 234 Slashing 875 | . . . . . . . . . . . . . . 875 . . . . Piercing . | . . . . . . . . . . . . . . . . . . . Highest Corruption 20 | . 4 4 4 4 . . . 20 . . . . 1 4 1 1 1 5 Average Corruption 3 | . 3 4 4 4 . . . 11 . . . . 1 1 1 1 1 1 Corruption Purged 4 | . . . . . . . . . . . . . . 4 . . . . Corruption Blocked . | . . . . . . . . . . . . . . . . . . . Effects 112 | . 7 2 13 4 . . . 52 . . . . 2 15 8 3 1 5 Message Errors 26 | . 2 1 3 . . . . 11 . . . . 1 5 2 . . 1 Matter Fused 28 | . . . 4 2 . . . 15 . . . . . 4 1 1 1 . Heat Flow Errors 21 | . 1 . 3 1 . . . 8 . . . . 1 3 3 . . 1 Energy Discharges 15 | . . 1 1 . . . . 10 . . . . . . . 1 . 2 Data Loss (minor) 10 | . 2 . 2 . . . . 2 . . . . . 3 . 1 . . Data Loss (major) 6 | . 1 . . . . . . 3 . . . . . . 1 . . 1 Misfires 5 | . 1 . . 1 . . . 2 . . . . . . 1 . . . Alerts 1 | . . . . . . . . 1 . . . . . . . . . . Overload Shots 41 | . . . . . . . . . . . . . 3 19 10 3 . 6 Effects 4 | . . . . . . . . . . . . . . 1 2 1 . . Energy Bleed 2 | . . . . . . . . . . . . . . . 2 . . . Heat Surge 1 | . . . . . . . . . . . . . . 1 . . . . Short Circuit 1 | . . . . . . . . . . . . . . . . 1 . . Overflow Damage 660 | . . . . . 231 . 70 156 . . . . 16 62 . . . 125 Projectiles 235 | . . . . . . . 60 156 . . . . 16 . . . . 3 Explosions 56 | . . . . . 56 . . . . . . . . . . . . . Melee 369 | . . . . . 175 . 10 . . . . . . 62 . . . 122 Knockbacks 11 | . . . . . 2 . 3 4 . . . . . 1 . . . 1 Impact 5 | . . . . . 2 . 1 . . . . . . 1 . . . 1 Kinetic 6 | . . . . . . . 2 4 . . . . . . . . . . Secondary . | . . . . . . . . . . . . . . . . . . . Self-Inflicted Damage 382 | . . . . 35 38 76 . 211 . . . . . 22 . . . . Shots 17 | . . . . 2 1 4 . 9 . . . . . 1 . . . . Rammed 1 | . . . . . . . . . . . . . . . . . . 1 Targets Rammed 1 | . . . . . . . . . . . . . . . . . . 1 Kicked . | . . . . . . . . . . . . . . . . . . . Crushed . | . . . . . . . . . . . . . . . . . . . Highest Temperature 610 | . 214 . 119 241 18 89 190 300 58 12 . . 251 320 299 . . 610 Average Temperature 96 | . 44 . 57 126 7 26 64 78 32 5 . . 97 115 119 . . 298 Received Heat Transfer 3582 | . 318 . . . 873 15 576 369 12 51 . . . 369 874 32 9 84 Effects 19 | . . . . . . . . 1 . . . . . . . . . 18 Shutdowns 3 | . . . . . . . . . . . . . . . . . . 3 Interference 2 | . . . . . . . . . . . . . . . . . . 2 Matter Decay 1 | . . . . . . . . . . . . . . . . . . 1 Short Circuit 1 | . . . . . . . . . . . . . . . . . . 1 Damage (minor) 3 | . . . . . . . . 1 . . . . . . . . . 2 Damage (major) 7 | . . . . . . . . . . . . . . . . . . 7 Damage (core) 2 | . . . . . . . . . . . . . . . . . . 2 Siege Activations 4 | . . . . . . . . . . . . . . . 3 1 . . Total Turns 58 | . . . . . . . . . . . . . . . 54 4 . . Longest Duration 30 | . . . . . . . . . . . . . . . 30 4 . . Robots Corrupted 4 | . . . . . 2 . . . . . . . . 1 . . . 1 Combat Hostiles 3 | . . . . . 1 . . . . . . . . 1 . . . 1 Parts Fried 13 | . . . . . 6 1 . 4 . . . . . . . . . 2 Impact Corruptions 10 | . . . . . 6 . 1 . . . . . . 1 . . . 2 Robots Melted 1 | . . . . . . . . . . 1 . . . . . . . . Combat Hostiles 1 | . . . . . . . . . . 1 . . . . . . . . Parts Melted 19 | . . . . . . . . 4 . 1 . . 1 6 7 . . . Heat Transferred 8964 | . 693 . . 111 . 198 1258 700 150 211 . . 250 1629 3031 472 . 261 Parts Sabotaged 5 | . . . . . . . . . . . . . . 5 . . . . Parts Stolen . | . . . . . . . . . . . . . . . . . . . Parts Stripped . | . . . . . . . . . . . . . . . . . . . Power Chain Reactions 4 | . . . . . . 1 . 3 . . . . . . . . . . Alert | -11 -10 -10 -10 -9 -8 -8 -8 -8 -7 -7 -7 -7 -5 -5 -5 -5 -5 -5 ------- Run | Yrd Mat Min Exi Min Mat Gar Mat Gar Fac Sto Rec Scr Fac Gar Ext Cet Arc Hub Peak Influence 1331 | 15 205 46 . 102 341 731 526 1331 716 253 56 . 99 981 724 521 167 358 Initial 698 | . 9 46 . . 39 129 356 205 698 145 51 . . 26 514 212 148 58 Average 303 | 4 84 46 . 94 126 426 281 771 531 158 52 . 36 350 514 325 134 76 Maximum Alert Level 4 | . 1 . . . 1 3 2 4 3 1 . . . 3 3 2 . 2 Low Security (%) 46 | 100 98 100 . 100 81 9 24 . . 61 100 . 100 45 . . 100 92 Level 1 22 | . 1 . . . 18 9 60 24 4 38 . . . 9 19 81 . 7 Level 2 22 | . . . . . . 74 15 23 86 . . . . 27 75 18 . . Level 3 5 | . . . . . . 6 . 27 8 . . . . 17 4 . . . Level 4 2 | . . . . . . . . 25 . . . . . . . . . . Level 5 . | . . . . . . . . . . . . . . . . . . . High Security . | . . . . . . . . . . . . . . . . . . . Max Security . | . . . . . . . . . . . . . . . . . . . Squads Dispatched 28 | . 5 . . 1 3 . 4 . 1 2 . . 2 . 3 1 . 6 Investigation 5 | . 1 . . 1 . . . . . 1 . . 1 . . 1 . . Extermination 4 | . . . . . . . . . 1 . . . 1 . . . . 2 Reinforcement 15 | . 4 . . . 3 . 3 . . 1 . . . . 1 . . 3 Assault 2 | . . . . . . . . . . . . . . . 2 . . . Garrison 2 | . . . . . . . 1 . . . . . . . . . . 1 Intercept . | . . . . . . . . . . . . . . . . . . . Searches Triggered . | . . . . . . . . . . . . . . . . . . . Construction Impeded 1 | . . . . . . . . . . . . . . . . . . 1 Haulers Reinforced 1 | . . . . . . . . . . 1 . . . . . . . . Active Scanning Responses . | . . . . . . . . . . . . . . . . . . . Cargo Convoy Interrupts . | . . . . . . . . . . . . . . . . . . . Stealth | -11 -10 -10 -10 -9 -8 -8 -8 -8 -7 -7 -7 -7 -5 -5 -5 -5 -5 -5 --------- Run | Yrd Mat Min Exi Min Mat Gar Mat Gar Fac Sto Rec Scr Fac Gar Ext Cet Arc Hub Distress Signals 18 | . 2 . . . 5 . 3 . . 1 . . . 1 2 2 . 2 Communications Jammed . | . . . . . . . . . . . . . . . . . . . Distress Signals . | . . . . . . . . . . . . . . . . . . . Times Spotted 260 | . 34 . . 3 42 14 27 25 2 17 . . 4 27 30 17 2 16 Peak Tracking Total 8 | . 5 . . 3 8 7 5 6 1 6 . . 1 7 5 5 1 3 Tactical Retreats 27 | . 1 . . . 9 3 3 4 . 2 . . 1 1 2 . . 1 Traps | -11 -10 -10 -10 -9 -8 -8 -8 -8 -7 -7 -7 -7 -5 -5 -5 -5 -5 -5 ------- Run | Yrd Mat Min Exi Min Mat Gar Mat Gar Fac Sto Rec Scr Fac Gar Ext Cet Arc Hub Traps Triggered 15 | . 7 . . . . 6 . 1 . . . . . 1 . . . . Indirectly 2 | . . . . . . 1 . 1 . . . . . . . . . . Trap Hack Attempts 30 | . 30 . . . . . . . . . . . . . . . . . Triggered . | . . . . . . . . . . . . . . . . . . . Disarmed . | . . . . . . . . . . . . . . . . . . . Reprogrammed 3 | . 3 . . . . . . . . . . . . . . . . . Reused . | . . . . . . . . . . . . . . . . . . . Traps Extracted . | . . . . . . . . . . . . . . . . . . . Installed . | . . . . . . . . . . . . . . . . . . . Triggered . | . . . . . . . . . . . . . . . . . . . Machines | -11 -10 -10 -10 -9 -8 -8 -8 -8 -7 -7 -7 -7 -5 -5 -5 -5 -5 -5 ---------- Run | Yrd Mat Min Exi Min Mat Gar Mat Gar Fac Sto Rec Scr Fac Gar Ext Cet Arc Hub Machines Disabled 27 | . 1 . . . 2 2 3 6 . . . . . 5 3 2 . 3 Max in Single Turn 2 | . 1 . . . 2 1 1 1 . . . . . 1 1 . . . Garrison Access 1 | . . . . . . . . . . 1 . . . . . . . . Garrison Relay 8 | . . . . . . 2 . 2 . . . . . 4 . . . . Machines Repaired . | . . . . . . . . . . . . . . . . . . . Machines Dismantled 2 | . . . . . . . . . . . . . . . 2 . . . Machines Sabotaged . | . . . . . . . . . . . . . . . . . . . Overloaded Fab Kills . | . . . . . . . . . . . . . . . . . . . Hacking | -11 -10 -10 -10 -9 -8 -8 -8 -8 -7 -7 -7 -7 -5 -5 -5 -5 -5 -5 --------- Run | Yrd Mat Min Exi Min Mat Gar Mat Gar Fac Sto Rec Scr Fac Gar Ext Cet Arc Hub Machines Accessed 79 | . 5 . 3 1 9 1 5 3 7 7 4 3 10 1 11 3 1 5 Terminals 49 | . 3 . . . 5 1 2 3 5 4 2 . 4 1 11 3 . 5 Fabricators 2 | . . . . . . . . . . . . . 2 . . . . . Repair Stations 6 | . 1 . . . 1 . . . . 2 . . 2 . . . . . Recycling Units 5 | . 1 . . . 1 . 1 . . . 1 . 1 . . . . . Scanalyzers 4 | . . . . . 1 . 1 . 2 . . . . . . . . . Garrison Access 4 | . . . . . 1 . 1 . . 1 . . 1 . . . . . Total Hacks 264 | . 25 . 13 1 25 2 18 8 22 17 20 27 35 2 23 6 2 18 Successful 192 | . 9 . 13 1 15 1 15 4 13 10 19 27 31 . 16 3 2 13 Failed 71 | . 16 . . . 10 1 3 4 9 7 1 . 3 2 7 3 . 5 Catastrophic 5 | . 2 . . . . 1 . 1 1 . . . . . . . . . Database Lockouts 1 | . . . . . . . . . . . . . 1 . . . . . Manual 80 | . 13 . 1 . 5 2 6 6 5 5 2 . 18 2 6 2 . 7 Terminals 150 | . 18 . . . 18 2 8 8 12 8 3 . 24 2 23 6 . 18 Fabricators 4 | . . . . . . . . . . . . . 4 . . . . . Repair Stations 16 | . 2 . . . 2 . . . . 8 . . 4 . . . . . Recycling Units 11 | . 5 . . . 1 . 2 . . . 1 . 2 . . . . . Scanalyzers 20 | . . . . . 3 . 7 . 10 . . . . . . . . . Garrison Access 4 | . . . . . 1 . 1 . . 1 . . 1 . . . . . Terminal Hacks 121 | . 5 . 13 1 7 . 4 2 5 2 17 27 12 . 13 3 2 8 Record 60 | . . . 12 . . . . . . . 16 27 . . . 2 2 1 Part Schematic 2 | . . . . . . . . . 1 . . . 1 . . . . . Robot Schematic 2 | . . . . . . . . . . . . . 2 . . . . . Robot Analysis 3 | . 2 . . . . . . . . . . . 1 . . . . . Prototype ID Bank 1 | . . . . . . . . . . . . . 1 . . . . . Open Door 10 | . . . . 1 . . . . . 1 . . . . 7 1 . . Branch Access Points 6 | . 1 . . . . . . . 1 1 . . 1 . 1 . . 1 Emergency Access Points 4 | . 1 . . . 1 . . 1 . . . . . . . . . 1 Terminal Index 2 | . . . . . 1 . . . . . . . 1 . . . . . Recycling Unit Index 1 | . . . . . . . . . . . . . 1 . . . . . Alert Level 1 | . . . . . 1 . . . . . . . . . . . . . Unreport Threat 5 | . . . . . 1 . . . 1 . . . . . 2 . . 1 Locate Traps 9 | . . . . . 1 . 2 . 1 . . . 1 . 2 . . 2 Investigation Status 1 | . . . . . 1 . . . . . . . . . . . . . Recall Reinforcements 1 | . . . . . . . 1 . . . . . . . . . . . Registered Prototypes 2 | . . . . . . . . . . . 1 . 1 . . . . . Zone Layout 9 | . 1 . . . 1 . 1 . 1 . . . 2 . 1 . . 2 Garrison Registry 1 | . . . . . . . . 1 . . . . . . . . . . Derelict Proto ID Bank 1 | . . . 1 . . . . . . . . . . . . . . . Fabricator Hacks 4 | . . . . . . . . . . . . . 4 . . . . . Load Schematic 1 | . . . . . . . . . . . . . 1 . . . . . Build 3 | . . . . . . . . . . . . . 3 . . . . . Repair Station Hacks 14 | . 2 . . . 2 . . . . 6 . . 4 . . . . . Scan Component 7 | . 1 . . . 1 . . . . 3 . . 2 . . . . . Repair 7 | . 1 . . . 1 . . . . 3 . . 2 . . . . . Recycling Unit Hacks 1 | . . . . . 1 . . . . . . . . . . . . . Report Inventory 1 | . . . . . 1 . . . . . . . . . . . . . Scanalyzer 13 | . . . . . . . 6 . 7 . . . . . . . . . Insert Component 7 | . . . . . . . 3 . 4 . . . . . . . . . Analyze 6 | . . . . . . . 3 . 3 . . . . . . . . . Garrison Access Hacks 4 | . . . . . 1 . 1 . . 1 . . 1 . . . . . Unlock Access 3 | . . . . . 1 . 1 . . . . . 1 . . . . . Seal Access 1 | . . . . . . . . . . 1 . . . . . . . . Unauthorized Hacks 35 | . 2 . . . 4 1 4 2 1 1 2 . 10 . 3 . . 5 Terminals 29 | . 1 . . . 4 1 2 2 1 1 1 . 8 . 3 . . 5 Track 5 | . 1 . . . 1 . . . . . . . 1 . . . . 2 Assimilate 6 | . . . . . 1 . 1 . . 1 . . 2 . 1 . . . Botnet 11 | . . . . . 1 1 1 1 1 . 1 . 3 . 1 . . 1 Disrupt 2 | . . . . . . . . 1 . . . . . . . . . 1 Operators 5 | . . . . . 1 . . . . . . . 2 . 1 . . 1 Fabricators . | . . . . . . . . . . . . . . . . . . . Repair Stations . | . . . . . . . . . . . . . . . . . . . Recycling Units 6 | . 1 . . . . . 2 . . . 1 . 2 . . . . . Recyclers 4 | . 1 . . . . . 1 . . . 1 . 1 . . . . . Mask 2 | . . . . . . . 1 . . . . . 1 . . . . . Scanalyzers . | . . . . . . . . . . . . . . . . . . . Garrison Access . | . . . . . . . . . . . . . . . . . . . Data Cores Recovered . | . . . . . . . . . . . . . . . . . . . Used . | . . . . . . . . . . . . . . . . . . . Hacking Detections 54 | . 5 . . . 7 1 3 3 6 6 3 . 4 1 8 2 . 5 Full Trace Events 5 | . 1 . . . . . . . . 1 . . 1 1 . 1 . . Feedback Events . | . . . . . . . . . . . . . . . . . . . Feedback Blocked . | . . . . . . . . . . . . . . . . . . . Robot Schematics Acquired 2 | . . . . . . . . . . . . . 2 . . . . . Robots Built . | . . . . . . . . . . . . . . . . . . . Authchips . | . . . . . . . . . . . . . . . . . . . Time . | . . . . . . . . . . . . . . . . . . . Total Robot Build Rating . | . . . . . . . . . . . . . . . . . . . Part Schematics Acquired 7 | . . . . . . . 2 . 4 . . . 1 . . . . . Parts Built 5 | . . . . . . . . . . . . . 5 . . . . . Authchips . | . . . . . . . . . . . . . . . . . . . Time 362 | . . . . . . . . . . . . . 362 . . . . . Total Part Build Rating 38 | . . . . . . . . . . . . . 38 . . . . . Parts Repaired 7 | . 1 . . . 1 . . . . 3 . . 2 . . . . . Time 277 | . 13 . . . 38 . . . . 122 . . 104 . . . . . Parts Recycled . | . . . . . . . . . . . . . . . . . . . Recycled Matter . | . . . . . . . . . . . . . . . . . . . Retrieved Matter . | . . . . . . . . . . . . . . . . . . . Retrieved Components . | . . . . . . . . . . . . . . . . . . . Parts Scanalyzed 5 | . . . . . . . 2 . 3 . . . . . . . . . Part Schematics Acquired 5 | . . . . . . . 2 . 3 . . . . . . . . . Parts Damaged 1 | . . . . . . . . . 1 . . . . . . . . . Bothacking | -11 -10 -10 -10 -9 -8 -8 -8 -8 -7 -7 -7 -7 -5 -5 -5 -5 -5 -5 ------------ Run | Yrd Mat Min Exi Min Mat Gar Mat Gar Fac Sto Rec Scr Fac Gar Ext Cet Arc Hub Used RIF Installer 3 | . . . . . . 1 . 1 . . . . . 1 . . . . Coupler Efficiency 1 | . . . . . . . . 1 . . . . . . . . . . Robot Detection 1 | . . . . . . . . . . . . . . 1 . . . . Robots Hacked 39 | . 3 . . . . . . . 2 11 . . 1 5 10 1 2 4 Non-combat 21 | . 3 . . . . . . . 2 7 . . 1 . 4 . 1 3 Combat 18 | . . . . . . . . . . 4 . . . 5 6 1 1 1 Robot Hacks Applied 46 | . 5 . . . . . . . 2 11 . . 1 5 13 1 4 4 parse_system 4 | . . . . . . . . . . . . . . . 2 1 . 1 no_distress 7 | . 4 . . . . . . . . . . . . . 1 . 1 1 ignore_repairs 1 | . . . . . . . . . . . . . . . 1 . . . map_walls 2 | . . . . . . . . . 1 . . . . . 1 . . . randomize_corridors 1 | . . . . . . . . . . . . . . . 1 . . . drop_inventory 7 | . . . . . . . . . 1 5 . . 1 . . . . . find_station 1 | . 1 . . . . . . . . . . . . . . . . . purge_threat 1 | . . . . . . . . . . . . . . . . . 1 . map_route 1 | . . . . . . . . . . . . . . . . . . 1 link_complan 1 | . . . . . . . . . . . . . . . 1 . . . broadcast_data 1 | . . . . . . . . . . . . . . 1 . . . . amplify_resonance 1 | . . . . . . . . . . . . . . 1 . . . . overwrite_iff 3 | . . . . . . . . . . 2 . . . 1 . . . . streamctrl_high 1 | . . . . . . . . . . . . . . . . . 1 . formatsys_low 5 | . . . . . . . . . . 2 . . . . 2 . 1 . formatsys_high 9 | . . . . . . . . . . 2 . . . 2 4 . . 1 Relay Couplers Released 34 | . . . . . . 6 . 9 . . . . . 19 . . . . Machine Destruction 34 | . . . . . . 6 . 9 . . . . . 19 . . . . Attached 13 | . . . . . . . . 1 1 2 . . . 4 4 . . 1 Fabnet Peak Effective % . | . . . . . . . . . . . . . . . . . . . Robots Rewired 12 | . . . . . . . . . 1 . . . . . 11 . . . Allies Hacked . | . . . . . . . . . . . . . . . . . . . Hacks Repelled 1 | . . . . . . . . . . . . . . . . . . 1 Allies | -11 -10 -10 -10 -9 -8 -8 -8 -8 -7 -7 -7 -7 -5 -5 -5 -5 -5 -5 -------- Run | Yrd Mat Min Exi Min Mat Gar Mat Gar Fac Sto Rec Scr Fac Gar Ext Cet Arc Hub Total Allies 51 | . . . . . 1 . . 2 1 6 . . 1 3 29 5 2 1 Largest Group 13 | . . . . . 1 . . 2 1 3 1 . 1 2 13 12 9 9 Highest-Rated Group 801 | . . . . . 10 . . 70 20 55 26 . 26 114 383 801 600 658 Highest-Rated Ally 159 | . . . . . 10 . . 39 20 26 26 . 26 85 159 159 124 137 Total Orders 24 | . . . . . . . . . . 5 . . 4 7 . 2 . 6 STAY 11 | . . . . . . . . . . . . . 2 4 . 1 . 4 FOLLOW 9 | . . . . . . . . . . 1 . . 2 3 . 1 . 2 AID 2 | . . . . . . . . . . 2 . . . . . . . . EXPLORE 2 | . . . . . . . . . . 2 . . . . . . . . Ally Attacks 347 | . . . . . . . . 7 . 14 . . . 27 152 85 17 45 Total Damage 8701 | . . . . . . . . 58 . 172 . . . 1112 2811 1943 609 1996 Kills 64 | . . . . . . . . . . 1 . . . 8 24 16 4 11 Allies Corrupted 4 | . . . . . . . . . 1 . . . . . 1 . . 2 Allies Melted 2 | . . . . . . . . . . 2 . . . . . . . . Intel | -11 -10 -10 -10 -9 -8 -8 -8 -8 -7 -7 -7 -7 -5 -5 -5 -5 -5 -5 ------- Run | Yrd Mat Min Exi Min Mat Gar Mat Gar Fac Sto Rec Scr Fac Gar Ext Cet Arc Hub Robot Analysis Total 3 | . 2 . . . . . . . . . . . 1 . . . . . Derelict Logs Recovered . | . . . . . . . . . . . . . . . . . . . Drone Launches 2 | . . . . . . . . . . 2 . . . . . . . . Drone Recoveries . | . . . . . . . . . . . . . . . . . . . Exploration | -11 -10 -10 -10 -9 -8 -8 -8 -8 -7 -7 -7 -7 -5 -5 -5 -5 -5 -5 ------------- Run | Yrd Mat Min Exi Min Mat Gar Mat Gar Fac Sto Rec Scr Fac Gar Ext Cet Arc Hub Turns Passed 20880 | 98 1573 101 649 196 3698 1277 2576 2115 840 656 178 420 791 2180 1494 810 176 1052 Spaces Moved 13376 | 67 671 62 399 110 1246 533 914 923 1816 802 401 1205 1205 1174 695 473 94 586 Core 3 | 3 . . . . . . . . . . . . . . . . . . Treads 7648 | . 565 62 399 110 1246 533 914 923 13 . . . . 1035 695 473 94 586 Legs . | . . . . . . . . . . . . . . . . . . . Wheels 170 | 64 106 . . . . . . . . . . . . . . . . . Hover . | . . . . . . . . . . . . . . . . . . . Flight 5555 | . . . . . . . . . 1803 802 401 1205 1205 139 . . . . Fastest Speed 34 | 50 90 160 160 160 152 152 152 157 34 34 34 34 34 34 145 152 152 160 Average Speed 115 | 88 148 160 160 160 182 210 221 188 35 34 34 34 34 135 149 152 158 160 Slowest Speed 250 | 90 160 160 160 160 240 232 250 250 170 109 34 34 109 155 152 152 160 160 Overloaded Moves . | . . . . . . . . . . . . . . . . . . . Propulsion Burnouts . | . . . . . . . . . . . . . . . . . . . Robots Hopped 4 | . . . . . . . . . . 4 . . . . . . . . Cave-ins Triggered . | . . . . . . . . . . . . . . . . . . . Exploration Rate (%) 55 | 3 81 15 82 26 56 57 59 79 39 64 55 61 14 75 72 92 79 40 Regions Visited 18 Branch Regions 10 Pre-discovered Areas 1 | . . . 1 . . . . . . . . . . . . . . . Known Exits Taken 9 | . 1 . . . 1 . 1 . 1 1 . . 1 . 1 1 1 . Unknown Exits Taken 6 | 1 . 1 1 1 . . . . . . 1 1 . . . . . . Scrap Searched 10 | . . . . 1 . . . . . . . 9 . . . . . . Spaces Dug 131 | . . . . 13 16 3 18 . 33 5 4 . 19 2 7 . . 11 Terrain Destroyed 211 | . . . . 20 39 3 24 21 33 5 4 . 19 7 17 4 . 15 Melee 109 | . . . . . 16 1 18 . 33 5 4 . 16 2 3 . . 11 Projectile 50 | . . . . . . . 6 14 . . . . 3 5 14 4 . 4 AOE 51 | . . . . 20 23 2 . 6 . . . . . . . . . . Terrain Rammed . | . . . . . . . . . . . . . . . . . . . Walls Destroyed . | . . . . . . . . . . . . . . . . . . . Machines Disabled . | . . . . . . . . . . . . . . . . . . . Actions | -11 -10 -10 -10 -9 -8 -8 -8 -8 -7 -7 -7 -7 -5 -5 -5 -5 -5 -5 --------- Run | Yrd Mat Min Exi Min Mat Gar Mat Gar Fac Sto Rec Scr Fac Gar Ext Cet Arc Hub Total 17756 | 90 1059 63 413 125 2515 647 1339 1191 1964 1152 435 1217 1556 1644 1033 541 115 657 Wait 2771 | 1 222 . . . 1051 62 270 119 38 278 30 . 280 255 123 16 10 16 Move 13353 | 66 670 61 398 109 1246 532 914 922 1815 793 400 1204 1205 1173 694 472 93 586 Hop 4 | . . . . . . . . . . 4 . . . . . . . . Pick Up 216 | 6 10 . 8 5 23 . 14 20 33 17 1 7 19 33 12 4 1 3 Fast Attach 72 | 9 8 . . . 12 1 4 7 3 4 . . 2 11 3 7 1 . Attach 101 | . 5 . 1 1 12 . 3 7 9 7 . . 5 26 12 7 . 6 Detach 32 | 1 . . . . 1 . 1 1 7 3 . . 1 8 3 6 . . Swap 102 | . 10 2 . . 10 5 11 6 9 5 . . 4 14 13 7 1 5 Drop 139 | 1 7 . 6 3 20 . 21 11 9 6 . 6 13 17 7 6 . 6 Fire 644 | 6 88 . . 7 109 32 79 98 8 29 . . 11 59 75 16 9 18 Melee 192 | . 9 . . . 31 5 22 . 33 5 4 . 16 48 3 . . 16 Ram . | . . . . . . . . . . . . . . . . . . . Kick . | . . . . . . . . . . . . . . . . . . . Crush 1 | . . . . . . . . . . . . . . . . . . 1 Escape Stasis 10 | . . . . . . 10 . . . . . . . . . . . . Rewire 71 | . . . . . . . . . . . . . . . 71 . . . Trap 30 | . 30 . . . . . . . . . . . . . . . . . Miscellaneous 18 | . . . . . . . . . . 1 . . . . 17 . . . Route ------- -11/Scrapyard -10/Materials (discovered 5 exits: [*Mat x3] / *Min x2) -10/Mines -10/Exiles -9/Mines -8/Materials (discovered 2 exits: *Fac / Gar) -8/Garrison (discovered 3 exits: *Mat x3) -8/Materials (discovered 3 exits: *Fac x2 / Gar) -8/Garrison (discovered 3 exits: *Fac x3) -7/Factory (discovered 5 exits: [*Fac x2] / *Sto / Low x2) -7/Storage -7/Recycling (discovered 2 exits: *Fac / *Scr) -7/Scraptown -5/Factory (discovered 5 exits: Upp x2 / Ext x2 / Gar) -5/Garrison (discovered 2 exits: *Ext x2) -5/Extension (discovered 3 exits: *Fac x2 / *Cet) -5/Cetus (discovered 2 exits: *Fac / *Arc) -5/Archives (discovered 2 exits: *Hub x2) -5/Hub_04(d) (discovered 2 exits: *Fac x2) History --------- Turn | Location | Event 15 | -11/Scrapyard | Discovered new exit (range 14) 99 | -11/Scrapyard | Entered Materials 304 | -10/Materials | Build established: Mutant 508 | -10/Materials | Discovered new exit (range 16) 795 | -10/Materials | Discovered new exit (range 8) 1035 | -10/Materials | Discovered new exit (range 6) 1193 | -10/Materials | Discovered new exit (range 11) 1305 | -10/Materials | Repaired Lgt. Treads 1350 | -10/Materials | Identified exit to Mines 1403 | -10/Materials | Discovered new exit (range 18) 1672 | -10/Materials | Entered Mines 1673 | -10/Mines | Assembled infested the area 1767 | -10/Mines | Discovered new exit (range 5) 1773 | -10/Mines | Entered Exiles 1824 | -10/Exiles | Met 8R-AWN 1852 | -10/Exiles | Met EX-HEX 1899 | -10/Exiles | Met EX-BIN 1922 | -10/Exiles | Aligned with FarCom system 1923 | -10/Exiles | Given EX-Vault access code 1963 | -10/Exiles | Opened EX-Vault 1973 | -10/Exiles | Found Lightpack 2.0 2004 | -10/Exiles | Warned to stay clear of 0b10 Research branches 2096 | -10/Exiles | Met EX-DEC 2102 | -10/Exiles | Learned location of Zion (-7) 2177 | -10/Exiles | Visited The Gauntlet 2402 | -10/Exiles | Discovered new exit (range 12) 2422 | -10/Exiles | Left Exiles lab with Lightpack 2.0 2422 | -10/Exiles | Entered Mines 2431 | -9/Mines | Met a Derelict bent on vengeance 2492 | -9/Mines | Met a Derelict shopkeep closing up shop 2575 | -9/Mines | Discovered new exit (range 14) 2618 | -9/Mines | Entered Materials 2618 | -8/Materials | Evolved 4 slots: Utility x4 3027 | -8/Materials | Lost 3 parts (1n1u1w) 4085 | -8/Materials | Build established: Scavenger-Mutant 4227 | -8/Materials | Repaired Adv. Treads 4515 | -8/Materials | Discovered new exit (range 20) 6316 | -8/Materials | Identified exit to Garrison 6316 | -8/Materials | Entered Garrison 6425 | -8/Garrison | Triggered checkpoint 6483 | -8/Garrison | Triggered checkpoint 6484 | -8/Garrison | Build established: Mutant 6579 | -8/Garrison | Discovered new exit (range 10) 7016 | -8/Garrison | Discovered new exit (range 5) 7066 | -8/Garrison | Triggered checkpoint 7095 | -8/Garrison | Garrison Relay disabled 7180 | -8/Garrison | Triggered checkpoint 7300 | -8/Garrison | Discovered new exit (range 8) 7416 | -8/Garrison | Triggered checkpoint 7461 | -8/Garrison | Installed Relay Interface Framework 7489 | -8/Garrison | Garrison Relay disabled 7593 | -8/Garrison | Entered Materials 9411 | -8/Materials | Core integrity fell below 50% 9702 | -8/Materials | Discovered new exit (range 4) 9996 | -8/Materials | Garrison activated, responded to threat 10094 | -8/Materials | Discovered new exit (range 3) 10169 | -8/Materials | Identified exit to Garrison 10169 | -8/Materials | Entered Garrison 10299 | -8/Garrison | Discovered new exit (range 59) 10299 | -8/Garrison | Discovered new exit (range 85) 10299 | -8/Garrison | Discovered new exit (range 65) 10467 | -8/Garrison | Triggered checkpoint 10834 | -8/Garrison | Expanded RIF knowledge: Coupler Efficiency 10885 | -8/Garrison | Triggered checkpoint 10978 | -8/Garrison | Rescued a captive Derelict 10983 | -8/Garrison | Rescued a captive Derelict 11149 | -8/Garrison | Triggered checkpoint 11162 | -8/Garrison | Triggered checkpoint 11192 | -8/Garrison | Lost 3 parts (1p1u1w) 11195 | -8/Garrison | System corruption reached 10% 11225 | -8/Garrison | Lost 3 parts (1n2u) 11233 | -8/Garrison | Destroyed 9 combat bots 11333 | -8/Garrison | Garrison Relay disabled 11713 | -8/Garrison | Core integrity fell below 20% 12283 | -8/Garrison | Identified exit to Factory 12284 | -8/Garrison | Entered Factory 12284 | -7/Factory | Evolved 2 slots: Propulsion x1, Utility x1 12490 | -7/Factory | Identified exit to Storage 12490 | -7/Factory | Identified exit to Lower Caves 12688 | -7/Factory | Discovered new exit (range 15) 12774 | -7/Factory | Build established: Hauler-Mutant 12898 | -7/Factory | Discovered new exit (range 5) 13124 | -7/Factory | Entered Storage 13195 | -7/Storage | Repaired Mic. Nuclear Core 13400 | -7/Storage | Met 01-MTF 13541 | -7/Storage | Repaired Arm. Medium Treads 13586 | -7/Storage | Repaired Remote Datajack 13612 | -7/Storage | Identified exit to Recycling 13780 | -7/Storage | Entered Recycling 13780 | -7/Recycling | Accompanied by 1 ally 13863 | -7/Recycling | Discovered new exit (range 11) 13907 | -7/Recycling | Scanned before Scraplab entrance 13957 | -7/Recycling | Discovered new exit (range 2) 13958 | -7/Recycling | Entered Scraptown 14061 | -7/Scraptown | Discovered new exit (range 5) 14100 | -7/Scraptown | Visited The Evicted 14110 | -7/Scraptown | Visited Red Mages 14160 | -7/Scraptown | Visited Cave Peace 14168 | -7/Scraptown | Visited Comm Corps 14186 | -7/Scraptown | Visited Cyclists 14206 | -7/Scraptown | Visited Bundlers 14282 | -7/Scraptown | Visited Awakened 14296 | -7/Scraptown | Turned away by UFD registrar 14296 | -7/Scraptown | Turned away by UFD registrar 14378 | -7/Scraptown | Entered Factory 14378 | -5/Factory | Evolved 4 slots: Utility x4 14490 | -5/Factory | Identified exit to Upper Caves 14490 | -5/Factory | Identified exit to Extension 14574 | -5/Factory | Repaired Imp. VTOL Module? 14602 | -5/Factory | Central database locked down 14657 | -5/Factory | Repaired Mic. Nuclear Core? 14662 | -5/Factory | Fabricated Quantum Reactor? 14732 | -5/Factory | Fabricated Adv. Medium Treads? 14863 | -5/Factory | Build established: Hacker-Mutant 14890 | -5/Factory | Fabricated Adv. Hacking Suite? 15164 | -5/Factory | Identified exit to Garrison 15169 | -5/Factory | Entered Garrison 15169 | -5/Garrison | Accompanied by 1 ally 15179 | -5/Garrison | Triggered checkpoint 15236 | -5/Garrison | Triggered checkpoint 15378 | -5/Garrison | Lost 8 parts (2p2n3u1w) 15463 | -5/Garrison | Triggered checkpoint 15480 | -5/Garrison | Garrison Relay disabled 15802 | -5/Garrison | Build established: Bothacker-Mutant 15902 | -5/Garrison | Triggered checkpoint 15953 | -5/Garrison | Triggered checkpoint 16003 | -5/Garrison | Lost 4 parts (4u) 16193 | -5/Garrison | Triggered checkpoint 16193 | -5/Garrison | Build established: Hauler-Mutant 16229 | -5/Garrison | Spotted B-75 Beast 16231 | -5/Garrison | Assimilated Beast 6a with formatsys_high 16367 | -5/Garrison | Discovered exit to Extension (range 14) 16673 | -5/Garrison | Triggered checkpoint 16745 | -5/Garrison | Garrison Relay disabled 16776 | -5/Garrison | Garrison Relay disabled 16983 | -5/Garrison | Triggered checkpoint 16989 | -5/Garrison | Discovered exit to Extension (range 8) 17005 | -5/Garrison | Expanded RIF knowledge: Robot Detection 17063 | -5/Garrison | Build established: Bothacker-Mutant 17201 | -5/Garrison | Garrison Relay disabled 17349 | -5/Garrison | Entered Extension 17509 | -5/Extension | Rescued a captive Derelict 17602 | -5/Extension | Rescued a captive Derelict 17649 | -5/Extension | First assault squad dispatched 17657 | -5/Extension | Rescued a captive Derelict 17674 | -5/Extension | Rescued a captive Derelict 17675 | -5/Extension | Rescued a captive Derelict 17732 | -5/Extension | Rescued a captive Derelict 17741 | -5/Extension | Rescued a captive Derelict 17752 | -5/Extension | Rescued a captive Derelict 17754 | -5/Extension | Rescued a captive Derelict 17800 | -5/Extension | Spotted B-75 Beast 17844 | -5/Extension | Lost 14 allies 17858 | -5/Extension | Destroyed B-75 Beast 17919 | -5/Extension | Spotted B-75 Beast 17959 | -5/Extension | Destroyed B-75 Beast 18083 | -5/Extension | Discovered new exit (range 3) 18138 | -5/Extension | Rescued a captive Derelict 18139 | -5/Extension | Rescued a captive Derelict 18275 | -5/Extension | Rescued A7 18275 | -5/Extension | Lost 3 allies 18442 | -5/Extension | Identified exit to Cetus 18821 | -5/Extension | Discovered new exit (range 10) 18843 | -5/Extension | Entered Cetus 18843 | -5/Cetus | Accompanied by 7 allies (A7) 18848 | -5/Cetus | Acquired a Cetus Manufacturing Module code from A7 18863 | -5/Cetus | Spotted Cetus Guard 18863 | -5/Cetus | Spotted Cetus Guard 18865 | -5/Cetus | Spotted Cetus Guard 18865 | -5/Cetus | Spotted Cetus Guard 18867 | -5/Cetus | Allies destroyed Cetus Guard 18877 | -5/Cetus | Allies destroyed Cetus Guard 18886 | -5/Cetus | Allies destroyed Cetus Guard 18888 | -5/Cetus | Allies destroyed Cetus Guard 19163 | -5/Cetus | Started Cetus Manufacturing Module 19173 | -5/Cetus | Escorted A7 to Cetus Mainframe 19188 | -5/Cetus | Manufactured an Enhanced Grunt 19213 | -5/Cetus | Manufactured an Enhanced Grunt 19238 | -5/Cetus | Manufactured an Enhanced Grunt 19263 | -5/Cetus | Manufactured an Enhanced Grunt 19288 | -5/Cetus | Manufactured an Enhanced Grunt 19368 | -5/Cetus | Discovered new exit (range 15) 19391 | -5/Cetus | Identified exit to Factory 19506 | -5/Cetus | Discovered new exit (range 16) 19528 | -5/Cetus | Identified exit to Archives 19538 | -5/Cetus | Build established: Commander-Mutant 19561 | -5/Cetus | Spotted Cetus Guard 19561 | -5/Cetus | Spotted Cetus Guard 19564 | -5/Cetus | Spotted Cetus Guard 19564 | -5/Cetus | Spotted Cetus Guard 19570 | -5/Cetus | Allies destroyed Cetus Guard 19574 | -5/Cetus | Allies destroyed Cetus Guard 19578 | -5/Cetus | Allies destroyed Cetus Guard 19582 | -5/Cetus | Allies destroyed Cetus Guard 19592 | -5/Cetus | Found Prototype Device 19592 | -5/Cetus | Identified Exp. Thermal Shield 19593 | -5/Cetus | Security sweep announced 19601 | -5/Cetus | Core integrity fell below 50% 19605 | -5/Cetus | Lost 3 allies 19653 | -5/Cetus | Entered Archives 19653 | -5/Archives | Accompanied by 8 allies (A7) 19658 | -5/Archives | Received a hacking code to weaken MAIN.C 19703 | -5/Archives | Discovered new exit (range 16) 19724 | -5/Archives | Unable to access archive contents 19740 | -5/Archives | Unable to access archive contents 19743 | -5/Archives | Discovered new exit (range 16) 19756 | -5/Archives | Unable to access archive contents 19797 | -5/Archives | Identified exit to Hub_04(d) 19829 | -5/Archives | Entered Hub_04(d) 19829 | -5/Hub_04(d) | Accompanied by 8 allies 19880 | -5/Hub_04(d) | Discovered exit to Factory (range 4) 20197 | -5/Hub_04(d) | Discovered exit to Factory (range 5) 20567 | -5/Hub_04(d) | Build established: Hauler-Mutant 20799 | -5/Hub_04(d) | Garrison activated, responded to threat 20878 | -5/Hub_04(d) | Core integrity fell below 20% 20882 | -5/Hub_04(d) | Core destroyed Last Messages --------------- 20874_ Adv. Variable Charge Gun temporarily disabled. 20874_ System corrupted: Energy discharge (-22). 20874_ Dropped Adv. Variable Charge Gun. 20874_ P-70 Sage fails to hack Director 6a. 20875_ Power failure, Lgt. Antimatter Reactor shutdown. 20875_ Overheating: Relay Coupler [Sentry] damaged (-3). 20875_ U-05 Engineer builds a Wall. 20876_ Overheating: Relay Coupler [Heavy] damaged (-4). 20876_ Overheating: Centrium Heavy Treads damaged (-169). 20876_ Imp. Medium Armor Plating destroyed. 20877_ Destroyed Imp. Heat Sink. 20878_ Overheating: Core damaged (-130). 20879_ Overheating: Matter decay (-68). 20879_ U-05 Engineer builds a Wall. 20881_ Slug penetrates P-70 Sage. 20881_ P-70 Sage suffers critical hit (Destroy). 20881_ Destroyed Imp. Remote Datajack. 20881_ P-70 Sage destroyed. 20882_ Power failure, Lgt. Antimatter Reactor shutdown. 20882_ Overheating: Core damaged (-160). Map ----- +----------------------------------------------------+ | # # " " " #????##+##+######## #?????????????? | | # # " " " !#????# !!= # #?????????????? | | " / + #????# != # #?????????????? | | " # #" " " !#?#### " " != " + # ???????? | | " # #T " " #?# + " " " # # """ ???????? | | " # #" " " #?# ## " " " # # ???????? | | # # =### ## k # # """ ???????? | | ### ########"###+## "" " " " # # ???????? | | ### ## ]+ """ " " " # #####+#???????? | | # ## """ !]] # "T " " " + T ???????? | | # ## !]] # """ # ???????? | | # ## """ ]]] # "" # ???????? | | [ + ## # # ???????? | | # #########+#########+######## ???????? | | [ # =% ^ ^ ???????? | | + ! ^ ^ g ???????? | | # % %! ===########k##### """"???????? | | ### * "" == #??#uu # """"???????? | | # R == #??#oT * " # """"???????? | | # =#### # """"???????? | | # [[%gg == # ?????? | | # #############/##### ! == + ?????? | | +% #????## #?# ## p = ###"""T""??????? | | %# #?????###?# """" ## % u #?######???????? | | # #?????????# """" ##[ ! #????# ???????? | | # #?????????# """" ##@#####+###????# "???????? | | # #?????????# """" #####??# #??????# "???????? | | ### #????###### #??????# #??????# "???????? | | ??# #???? # """" #??????# #??????# "???????? | | ??# #???? " " # """" #??????# #??????# ???????? | | ??# #???? " " # """" #??????# ##########???????? | | ??# #???? " " # """" #??????# ? ???????? | | #?#???????? # #??????####### ???????? | | #?????????? " " # """" #????????????# ???????? | | #????????????????????????????????????????????????? | | #????????????????????????????????????????????????? | | #????????????????????????????????????????????????? | | #????????????????????????????????????????????????? | | #????????????????????????????????????????????????? | | #??????????????????????????????????????????????o?? | | #????????????????????????????????????????????????? | | #????????????????????????????????????????????????? | | ?????????????????????????????????????????????????? | | #????????????????????????????????????????????????? | | #?????#??????????????????????????????????????????? | | #???? #??????????????????????????????????????????? | | #??? ##?????????????????????????????????????????? | | #?? ######????????????????????????????????????? | | ## ?????????????????????????????????? | | "" < ?????????????????????????????????? | +----------------------------------------------------+ Best States ------------- Heat Dissipation 113 Energy Generation 25 Energy Capacity 350 Matter Stores 500 Matter Capacity 500 Sight Range 20 Terrain Scan Density 10 Additional Mass Support 9 EM Shielding 2 Armor Coverage 600 Resistance: KI 30 Resistance: EM 15 Core Shielding 20 Weapon Cycling 15 Evasion (%) 63 Targeting Accuracy 6 Melee Accuracy 6 Target Analysis 6 Recoil Reduction 6 Energy Filtering 30 Offensive Hacking 48 Defensive Hacking 14 Relay Coupler Types 4 Relay Coupler Value 87 Authchip Count 4 Item Schematics ----------------- Imp. Light Armor Plating | -8/Materials | Scanalyzed Imp. VTOL Module | -8/Materials | Scanalyzed Adv. Trap Extractor | -7/Factory | Hacked Adv. Hacking Suite | -7/Factory | Scanalyzed Weapon Cycler | -7/Factory | Scanalyzed KE Penetrator | -7/Factory | Scanalyzed Matter Neutralizer | -5/Factory | Hacked Robot Schematics ------------------ Y-64 Sentinel | -5/Factory | Hacked R-10 Processor | -5/Factory | Hacked Fabricated ------------ Quantum Reactor | x2 | -5/Factory | Preloaded Adv. Medium Treads | x2 | -5/Factory | Preloaded Adv. Hacking Suite | x1 | -5/Factory Alien Tech Used ----------------- None Achievements -------------- Just Shoot The Terminal Challenges ------------ None Game ------ Seed CoolantThrusterAutocannon Manual? 0 Play Time 04:56:42 Cumulative 352.7 hours Start 2024.12.25 @ 14:19:15 End 2024.12.26 @ 20:45:04 Sessions 9 Manual Loads 0 Difficulty Rogue Special Mode None Game No. 143 Rogue 143 Adventurer 0 Explorer 0 Win Type - Total 12 Types 10/0/1/1/0/0/0/0/0 Lore% 51 Gallery% 75 Achievement% 67 Wizard Run 0 Options --------- Layout 0 ASCII 0 Keyboard 0 Movement Numpad Keybinds 0 Fullscreen 1 Font 24/Smallcaps Map View 76x50 Zoom Use 0% Tactical HUD 1 Map Filters NONE Filters NONE Steam 1 RUN: dd506caa-1448-450d-acee-f488d00ffb9e